bitfinex/quotes_BTCUSD_20251202
["timestamp","ask_amount","ask_price","bid_price","bid_amount"]
[1764707425102,0.06252299,91071.0,91050.0,0.01098297]
[1764707425325,0.31069251,91050.0,91049.0,0.00011621]
[1764707425504,0.28418251,91050.0,91049.0,0.00011621]
[1764707425707,0.28518251,91050.0,91049.0,0.00011621]
[1764707425882,0.28318251,91050.0,91049.0,0.00011621]
[1764707426228,0.28218251,91050.0,91049.0,0.00011621]
[1764707426426,0.28318251,91050.0,91049.0,0.00011621]
[1764707426806,0.28718251,91050.0,91049.0,0.00011621]
[1764707427151,0.28718251,91050.0,91049.0,0.16170621]
[1764707427557,0.28718251,91050.0,91049.0,0.06537621]
[1764707428307,0.28718251,91050.0,91049.0,0.00011621]
[1764707429145,0.28718251,91050.0,91049.0,0.16170621]
[1764707429296,0.28718251,91050.0,91049.0,0.06537621]
[1764707430346,0.005,91050.0,91049.0,0.06537621]
[1764707430577,0.005,91050.0,91049.0,0.16170621]
[1764707430746,0.22465952,91050.0,91049.0,0.16170621]
[1764707430905,0.005,91050.0,91049.0,0.16170621]
[1764707431378,0.005,91050.0,91049.0,0.38136815]
[1764707433387,0.004,91050.0,91049.0,0.38136815]
[1764707434578,0.00352882,91068.0,91064.0,0.01098128]
[1764707434813,0.00352882,91068.0,91067.0,0.08160235]
[1764707435372,0.00352882,91068.0,91067.0,0.17386235]
[1764707435711,0.00452882,91068.0,91067.0,0.17386235]
[1764707435904,0.00752882,91068.0,91067.0,0.17386235]
[1764707436333,0.00652882,91068.0,91067.0,0.17386235]
[1764707436689,0.00752882,91068.0,91067.0,0.17386235]
[1764707436891,0.00752882,91068.0,91063.0,0.21962384]
[1764707436892,0.01098092,91067.0,91057.0,0.09656]
[1764707437067,0.23060197,91066.0,91065.0,0.01646235]
[1764707437479,0.23060197,91066.0,91065.0,0.08055235]
[1764707438022,0.23060197,91066.0,91065.0,0.06409]
[1764707438503,0.23060197,91066.0,91065.0,0.16065]
[1764707438677,0.23360197,91066.0,91065.0,0.16065]
[1764707438882,0.003,91066.0,91065.0,0.16065]
[1764707439095,0.004,91066.0,91065.0,0.16065]
[1764707439272,0.004,91066.0,91065.0,0.17711235]
[1764707439489,0.004,91066.0,91065.0,0.39673569]
[1764707439941,0.004,91066.0,91065.0,0.41457569]
[1764707442992,0.004,91066.0,91065.0,0.64484869]
[1764707443203,0.004,91066.0,91065.0,1.04484869]
[1764707443796,0.003,91066.0,91065.0,1.04484869]
[1764707443992,0.00352882,91068.0,91067.0,0.21961852]
[1764707444244,0.00352882,91068.0,91067.0,0.28370852]
[1764707444452,0.00352882,91068.0,91067.0,0.38026852]
[1764707445074,0.00452882,91068.0,91067.0,0.38026852]
[1764707446673,0.00452882,91068.0,91067.0,0.78026852]
[1764707447098,0.00452882,91068.0,91067.0,0.16065]
[1764707451713,0.00352882,91068.0,91067.0,0.16065]
[1764707452052,0.00652882,91068.0,91067.0,0.16065]
[1764707453213,0.00552882,91068.0,91067.0,0.16065]
[1764707453685,0.00652882,91068.0,91067.0,0.16065]
[1764707456017,0.00652882,91068.0,91067.0,1.296939]
[1764707456219,0.00552882,91068.0,91067.0,0.16065]
[1764707456409,0.00352882,91068.0,91067.0,0.17732144]
[1764707456987,0.00352882,91068.0,91067.0,0.57732144]
[1764707458014,0.00352882,91068.0,91067.0,0.56065]
[1764707458264,0.06252299,91105.0,91096.0,0.21954623]
[1764707458438,0.06252299,91103.0,91098.0,0.01097718]
[1764707458642,0.06252299,91098.0,91097.0,0.04668]
[1764707458818,0.08996596,91098.0,91097.0,0.457792]
[1764707459182,0.08996596,91098.0,91097.0,0.011112]
[1764707459401,0.08996596,91098.0,91092.0,0.01646235]
[1764707459402,0.01097767,91094.0,91092.0,0.01646235]
[1764707459601,0.23052349,91097.0,91092.0,0.01657856]
[1764707459602,0.23053022,91095.0,91092.0,0.01657856]
[1764707459779,0.02744417,91094.0,91093.0,0.06409]
[1764707460053,0.02744327,91097.0,91094.0,0.06409]
[1764707460260,0.02744327,91097.0,91095.0,0.21954984]
[1764707460387,0.02744327,91097.0,91096.0,0.06409]
[1764707460595,0.02744327,91097.0,91096.0,0.16065]
[1764707461212,0.02744327,91097.0,91096.0,0.3801986]
[1764707461429,0.07349885,91109.0,91104.0,0.01097646]
[1764707461638,0.25793811,91108.0,91105.0,0.09656]
[1764707461848,0.10093893,91108.0,91107.0,0.01646235]
[1764707462045,0.10093893,91108.0,91107.0,0.12723235]
[1764707462046,0.08996295,91108.0,91107.0,0.12723235]
[1764707463067,0.08996295,91108.0,91107.0,0.22379235]
[1764707463547,0.08996295,91108.0,91107.0,0.22479235]
[1764707463739,0.08996295,91108.0,91107.0,0.22979235]
[1764707466907,0.0004,91130.0,91129.0,0.2194691]
[1764707467101,0.01096888,91167.0,91129.0,0.2194691]
[1764707467102,0.04391916,91173.0,91157.0,0.23036935]
[1764707467377,0.01096791,91175.0,91157.0,0.23036935]
[1764707467378,0.01096791,91175.0,91159.0,0.11091]
[1764707467596,0.01096695,91183.0,91159.0,0.60628]
[1764707467795,0.21934374,91182.0,91159.0,0.60628]
[1764707468020,0.01096551,91195.0,91159.0,0.22274235]
[1764707468226,0.0007858,91160.0,91159.0,0.22274235]
[1764707468441,0.0007858,91160.0,91159.0,0.62274235]
[1764707468613,0.21931269,91194.0,91183.0,0.23030594]
[1764707468881,0.01096599,91191.0,91184.0,0.09537]
[1764707469021,0.01096635,91188.0,91183.0,0.00011621]
[1764707469229,0.02728724,91187.0,91183.0,0.00011621]
[1764707469434,0.25758352,91187.0,91183.0,0.00011621]
[1764707469636,0.03825371,91187.0,91186.0,0.01646235]
[1764707470158,0.02728724,91187.0,91186.0,0.01646235]
[1764707470379,0.02728724,91188.0,91186.0,0.01646235]
[1764707470515,0.02828724,91187.0,91186.0,0.01646235]
[1764707470754,0.02828724,91187.0,91183.0,0.00011621]
[1764707470755,0.21933672,91184.0,91183.0,0.00011621]
[1764707470958,0.38093294,91184.0,91183.0,0.00011621]
[1764707471258,0.3536457,91184.0,91183.0,0.00011621]
[1764707472378,0.33184971,91184.0,91183.0,0.00011621]
[1764707472621,0.3536457,91184.0,91183.0,0.00011621]
[1764707473580,0.3723657,91184.0,91183.0,0.00011621]
[1764707474702,0.35056971,91184.0,91183.0,0.00011621]
[1764707475533,0.3723657,91184.0,91183.0,0.00011621]
[1764707476824,0.80507076,91184.0,91183.0,0.00011621]
[1764707477027,0.80507076,91184.0,91134.0,0.10634285]
[1764707477028,0.01097176,91143.0,91134.0,0.10634285]
[1764707477213,0.2194378,91142.0,91140.0,0.0487758]
[1764707477411,0.0109696,91161.0,91149.0,0.21942013]
[1764707477639,0.01097032,91155.0,91154.0,0.01646235]
[1764707477877,0.01097008,91157.0,91154.0,0.01646235]
[1764707478092,0.01097092,91150.0,91147.0,0.01646235]
[1764707478312,0.25767281,91152.0,91147.0,0.23588753]
[1764707478520,0.0109702,91156.0,91151.0,0.0734908]
[1764707478747,0.0109702,91156.0,91153.0,0.04839]
[1764707478946,0.2194065,91155.0,91153.0,0.04839]
[1764707480208,0.0109702,91156.0,91154.0,0.06252]
[1764707480425,0.23037482,91156.0,91154.0,0.06252]
[1764707480885,0.03294721,91176.0,91154.0,0.06252]
[1764707480886,0.010969,91166.0,91155.0,0.07349032]
[1764707481020,0.010969,91166.0,91154.0,0.10634044]
[1764707481021,0.01096972,91160.0,91156.0,0.06252]
[1764707481420,0.01096984,91159.0,91156.0,0.06252]
[1764707481623,0.21940022,91158.0,91156.0,0.06252]
[1764707481813,0.21940022,91158.0,91157.0,0.09537]
[1764707481965,0.21940022,91158.0,91157.0,0.15789]
[1764707482701,0.21940022,91158.0,91157.0,0.06252]
[1764707482883,0.21940022,91158.0,91157.0,0.06452]
[1764707483736,0.21940022,91158.0,91157.0,0.06252]
[1764707483971,0.21940022,91158.0,91157.0,0.06452]
[1764707484158,0.21940022,91158.0,91157.0,0.15989]
[1764707484369,0.0109696,91161.0,91157.0,0.16089]
[1764707484603,0.01096972,91160.0,91158.0,0.06252]
[1764707484808,0.2303654,91160.0,91158.0,0.06252]
[1764707485005,0.21939879,91159.0,91157.0,0.09737]
[1764707485236,0.21939879,91159.0,91158.0,0.09537]
[1764707485473,0.21939879,91159.0,91158.0,0.15789]
[1764707485882,0.21939879,91159.0,91158.0,0.06252]
[1764707486786,0.21939879,91159.0,91158.0,0.06452]
[1764707487376,0.02905864,91169.0,91158.0,0.17085996]
[1764707487571,0.0109684,91171.0,91163.0,0.01646235]
[1764707487773,0.01096876,91168.0,91163.0,0.01646235]
[1764707487974,0.010969,91166.0,91164.0,0.09537]
[1764707488370,0.23034576,91168.0,91165.0,0.11091]
[1764707488558,0.23034576,91168.0,91167.0,0.06252]
[1764707489369,0.23034576,91168.0,91167.0,0.15789]
[1764707489771,0.23034576,91168.0,91167.0,0.16089]
[1764707490630,0.01096743,91179.0,91172.0,0.01096827]
[1764707490818,0.01096791,91175.0,91170.0,0.01096852]
[1764707490992,0.01096779,91176.0,91171.0,0.1063384]
[1764707491164,0.21935837,91175.0,91174.0,0.06252]
[1764707491639,0.219368,91171.0,91170.0,0.04839]
[1764707491904,0.219368,91171.0,91167.0,0.001]
[1764707491905,0.2818982,91168.0,91167.0,0.001]
[1764707492105,0.32227419,91168.0,91167.0,0.00011636]
[1764707492617,0.37128419,91168.0,91167.0,0.00011636]
[1764707493982,0.37128419,91168.0,91140.0,0.05936213]
[1764707493983,0.21946428,91131.0,91127.0,0.09537]
[1764707494158,0.21946428,91131.0,91130.0,0.0487758]
[1764707494753,0.01097297,91133.0,91130.0,0.1102658]
[1764707494976,0.21946227,91132.0,91130.0,0.1102658]
[1764707496128,0.21945263,91136.0,91131.0,0.39346749]
[1764707496353,0.21945263,91136.0,91135.0,0.01646235]
[1764707496574,0.21945263,91136.0,91135.0,0.08240235]
[1764707497546,0.21945263,91136.0,91135.0,0.08340235]
[1764707497786,0.2304198,91138.0,91135.0,0.08340235]
[1764707498082,0.0109714,91146.0,91138.0,0.01097237]
[1764707498283,0.01097116,91148.0,91145.0,0.11377]
[1764707498417,0.21942094,91149.0,91145.0,0.11377]
[1764707498618,0.21942754,91147.0,91145.0,0.11377]
[1764707498823,0.21942817,91146.0,91145.0,0.11377]
[1764707499261,0.07349391,91150.0,91145.0,0.11377]
[1764707499503,0.07349391,91150.0,91137.0,0.21944912]
[1764707499504,0.0109714,91146.0,91143.0,0.04783]
[1764707499707,0.01097225,91139.0,91135.0,0.01646235]
[1764707499918,0.01097237,91138.0,91135.0,0.01746235]
[1764707500126,0.21945224,91136.0,91135.0,0.01746235]
[1764707500325,0.21945224,91136.0,91135.0,0.01646235]
[1764707500915,0.21946428,91131.0,91130.0,0.0487758]
[1764707501130,0.21946428,91131.0,91130.0,0.0003858]
[1764707501131,0.28198727,91131.0,91130.0,0.0003858]
[1764707501478,0.28198727,91131.0,91084.0,0.04783]
[1764707501479,0.21954137,91099.0,91084.0,0.04783]
[1764707501688,0.21955583,91093.0,91091.0,0.04783]
[1764707501900,0.21955583,91093.0,91092.0,0.01657828]
[1764707502327,0.21955424,91094.0,91092.0,0.01657828]
[1764707502537,0.23050697,91104.0,91096.0,0.2195477]
[1764707502738,0.23051386,91101.0,91098.0,0.003]
[1764707502914,0.01097694,91100.0,91096.0,0.23052549]
[1764707503115,0.21954175,91099.0,91094.0,0.01097767]
[1764707503271,0.23052245,91098.0,91097.0,0.01646235]
[1764707503476,0.21953334,91103.0,91098.0,0.23052096]
[1764707503477,0.23050887,91103.0,91098.0,0.23052096]
[1764707503682,0.21953009,91104.0,91100.0,0.21953842]
[1764707503881,0.21953009,91104.0,91098.0,0.01097718]
[1764707503882,0.21954137,91099.0,91098.0,0.001]
[1764707504085,0.01097634,91105.0,91098.0,0.001]
[1764707504458,0.23051264,91102.0,91097.0,0.24698541]
[1764707504612,0.01097682,91101.0,91098.0,0.001]
[1764707504770,0.2305166,91100.0,91098.0,0.003]
[1764707504969,0.2305166,91100.0,91098.0,0.001]
[1764707505415,0.23053409,91093.0,91089.0,0.21956368]
[1764707505615,0.23064972,91093.0,91090.0,0.21956236]
[1764707505979,0.00011563,91093.0,91091.0,0.21956035]
[1764707506973,0.00111563,91093.0,91091.0,0.21956035]
[1764707507391,0.00111563,91093.0,91092.0,0.18498582]
[1764707507392,0.00011563,91093.0,91092.0,0.18498582]
[1764707507593,0.00411563,91093.0,91092.0,0.16303]
[1764707507797,0.00511563,91093.0,91092.0,0.16303]
[1764707508046,0.00111563,91093.0,91091.0,0.21956035]
[1764707508160,0.00611563,91093.0,91091.0,0.21956043]
[1764707508562,0.00111563,91093.0,91090.0,0.21956046]
[1764707508764,0.00111563,91093.0,91082.0,0.2195822]
[1764707508765,0.21958244,91082.0,91072.0,0.09709]
[1764707508985,0.21958244,91082.0,91059.0,0.01098189]
[1764707508986,0.21958244,91082.0,91068.0,0.01768]
[1764707509186,0.21958244,91082.0,91070.0,0.01098056]
[1764707509410,0.21958244,91082.0,91073.0,0.0109802]
[1764707509609,0.21958244,91082.0,91070.0,0.01098056]
[1764707509837,0.21958244,91082.0,91073.0,0.0109802]
[1764707510009,0.21958244,91082.0,91071.0,0.01098044]
[1764707510010,0.22058244,91082.0,91075.0,0.01097996]
[1764707510432,0.23060239,91066.0,91059.0,0.01098189]
[1764707510639,0.23060239,91066.0,91057.0,0.01098213]
[1764707510640,0.0109814,91063.0,91055.0,0.01098237]
[1764707510808,0.01098128,91064.0,91060.0,0.23061664]
[1764707511007,0.01098116,91065.0,91063.0,0.01646235]
[1764707511215,0.04589,91069.0,91066.0,0.21961829]
[1764707511420,0.06252299,91078.0,91068.0,0.11377]
[1764707511703,0.01098008,91074.0,91070.0,0.01098056]
[1764707511830,0.23058252,91074.0,91070.0,0.01098056]
[1764707512029,0.23058252,91074.0,91068.0,0.04783]
[1764707512030,0.21961345,91070.0,91068.0,0.04783]
[1764707512252,0.01098008,91074.0,91068.0,0.27842598]
[1764707512253,0.01098044,91071.0,91068.0,0.27842598]
[1764707512458,0.01098044,91071.0,91068.0,0.04783]
[1764707512658,0.01098032,91072.0,91069.0,0.23059385]
[1764707512832,0.01098032,91072.0,91067.0,0.01098092]
[1764707513040,0.001,91070.0,91069.0,0.2305926]
[1764707513575,0.29321183,91078.0,91073.0,0.23058193]
[1764707513879,0.06463858,91078.0,91074.0,0.01098008]
[1764707514100,0.00011559,91078.0,91077.0,0.01646235]
[1764707514331,0.00011559,91078.0,91077.0,0.08240235]
[1764707514929,0.00011559,91078.0,91077.0,0.17949235]
[1764707515367,0.00011559,91078.0,91077.0,0.08240235]
[1764707515548,0.00011559,91078.0,91077.0,0.08340235]
[1764707515976,0.00011559,91078.0,91077.0,0.08440235]
[1764707516563,0.00011559,91078.0,91077.0,0.30399675]
[1764707517727,0.00011559,91078.0,91077.0,0.30299675]
[1764707518107,0.00011559,91078.0,91077.0,0.30499675]
[1764707518320,0.00011559,91078.0,91077.0,0.23905675]
[1764707518705,0.00011559,91078.0,91077.0,0.30399675]
[1764707518915,0.00011559,91078.0,91077.0,0.30499675]
[1764707519141,0.00011559,91078.0,91077.0,0.40208675]
[1764707519361,0.00011559,91078.0,91077.0,1.59506375]
[1764707519586,0.00011559,91078.0,91077.0,1.99506375]
[1764707519788,0.00011559,91078.0,91077.0,1.73709775]
[1764707519992,0.00011559,91078.0,91077.0,1.73509775]
[1764707520141,0.00011559,91078.0,91077.0,1.73709775]
[1764707520341,0.00011559,91078.0,91077.0,1.70633075]
[1764707520565,0.00011559,91078.0,91077.0,1.66439975]
[1764707520746,0.00199559,91078.0,91077.0,1.66439975]
[1764707520949,0.01097526,91114.0,91109.0,0.21951689]
[1764707521150,0.00011638,91114.0,91112.0,0.24694684]
[1764707521329,0.00011638,91114.0,91113.0,0.33327764]
[1764707521536,0.00011638,91114.0,91113.0,0.11377]
[1764707521739,0.00011638,91114.0,91113.0,0.21086]
[1764707523417,0.00011638,91114.0,91113.0,0.21186]
[1764707523822,0.00011638,91114.0,91113.0,0.21286]
[1764707524391,0.00011638,91114.0,91113.0,0.11577]
[1764707525053,0.00011638,91114.0,91113.0,0.21286]
[1764707525270,0.00011638,91114.0,91113.0,0.11577]
[1764707525869,0.00011638,91114.0,91113.0,0.21284]
[1764707526633,0.00011638,91114.0,91113.0,0.43234764]
[1764707530690,0.00011638,91114.0,91113.0,2.69455364]
[1764707531014,0.00511638,91114.0,91113.0,1.64869964]
[1764707531172,0.00511638,91114.0,91113.0,1.42959064]
[1764707540423,0.00511638,91114.0,91113.0,0.21084]
[1764707540660,0.00511638,91114.0,91113.0,0.43034764]
[1764707546702,0.00511638,91114.0,91113.0,0.21084]
[1764707546916,0.22462161,91114.0,91113.0,0.11377]
[1764707547126,0.22462161,91114.0,91113.0,0.21084]
[1764707547127,0.00511638,91114.0,91113.0,0.21084]
[1764707547768,0.00511638,91114.0,91113.0,0.43034764]
[1764707548220,0.22462161,91114.0,91113.0,0.21084]
[1764707549787,0.22462161,91114.0,91113.0,0.43034764]
[1764707549788,0.00511638,91114.0,91113.0,0.43034764]
[1764707551754,0.00511638,91114.0,91113.0,1.15894064]
[1764707551985,0.04064,91150.0,91143.0,0.21943499]
[1764707551986,0.01097104,91149.0,91143.0,0.21943499]
[1764707552209,0.01135882,91149.0,91147.0,0.01646235]
[1764707552516,0.23078217,91149.0,91147.0,0.06204235]
[1764707552722,0.00038778,91149.0,91147.0,0.06204235]
[1764707552908,0.00038778,91149.0,91148.0,0.38198335]
[1764707554266,0.00138778,91149.0,91148.0,0.38198335]
[1764707556165,0.00438778,91149.0,91148.0,0.38198335]
[1764707557358,0.00038778,91149.0,91148.0,0.38198335]
[1764707557554,0.00138778,91149.0,91148.0,0.38198335]
[1764707557802,0.00438778,91149.0,91148.0,0.38198335]
[1764707560012,0.00438778,91149.0,91148.0,0.78198335]
[1764707561013,0.00438778,91149.0,91148.0,0.38198335]
[1764707563724,0.00438778,91149.0,91148.0,0.16256]
[1764707563955,0.00438778,91149.0,91103.0,0.13649745]
[1764707563956,0.23044255,91129.0,91128.0,0.04332]
[1764707564145,0.08687,91155.0,91139.0,0.04445]
[1764707564362,0.04554,91157.0,91139.0,0.04445]
[1764707564363,0.01097176,91143.0,91139.0,0.04445]
[1764707564566,0.2194378,91142.0,91140.0,0.02194426]
[1764707564779,0.23040969,91142.0,91139.0,0.04445]
[1764707564931,0.21944111,91141.0,91139.0,0.04445]
[1764707565132,0.21944111,91141.0,91140.0,0.01646235]
[1764707565333,0.00038778,91149.0,91140.0,0.16825235]
[1764707565536,0.00038778,91149.0,91147.0,0.06125]
[1764707565733,0.00038778,91149.0,91148.0,0.06125]
[1764707565961,0.00038778,91149.0,91143.0,0.01097176]
[1764707565962,0.21943539,91143.0,91142.0,0.09054]
[1764707566235,0.21943539,91143.0,91140.0,0.01646235]
[1764707566236,0.23040815,91143.0,91140.0,0.01646235]
[1764707566343,0.21943859,91142.0,91140.0,0.01646235]
[1764707566747,0.23040924,91143.0,91141.0,0.06125]
[1764707566992,0.23040924,91143.0,91142.0,0.06125]
[1764707567796,0.00038778,91149.0,91143.0,0.01097176]
[1764707568126,0.01135882,91149.0,91148.0,0.06125]
[1764707568530,0.01135882,91149.0,91148.0,0.15179]
[1764707569283,0.00038778,91149.0,91148.0,0.15279]
[1764707569486,0.00038778,91149.0,91148.0,0.37221335]
[1764707570110,0.00038778,91149.0,91148.0,0.15279]
[1764707570317,0.21980872,91149.0,91148.0,0.15279]
[1764707570519,0.00038778,91149.0,91148.0,0.15279]
[1764707570692,0.00038778,91149.0,91148.0,0.15579]
[1764707572301,0.00038778,91149.0,91148.0,0.06525]
[1764707574094,0.19916077,91149.0,91148.0,0.004]
[1764707574266,0.23859676,91149.0,91148.0,0.004]
[1764707574426,0.21680077,91149.0,91148.0,0.004]
[1764707574630,0.23859676,91149.0,91148.0,0.003]
[1764707575028,0.21947632,91126.0,91124.0,0.04558]
[1764707575252,0.21947805,91126.0,91124.0,0.04558]
[1764707575457,0.27646322,91125.0,91121.0,0.23046167]
[1764707576182,0.04601,91125.0,91123.0,0.21948355]
[1764707576389,0.23045158,91126.0,91123.0,0.21948355]
[1764707576723,0.04554,91128.0,91125.0,0.01097393]
[1764707576929,0.21946436,91131.0,91128.0,0.21947122]
[1764707577231,0.05306297,91133.0,91124.0,0.01097405]
[1764707577232,0.001,91126.0,91124.0,0.01097405]
[1764707577400,0.001,91126.0,91124.0,0.23045512]
[1764707577601,0.001,91126.0,91120.0,0.01097453]
[1764707577602,0.01097405,91124.0,91120.0,0.01097453]
[1764707577803,0.23045519,91124.0,91123.0,0.003]
[1764707578022,0.23045519,91124.0,91117.0,0.04558]
[1764707578023,0.21949105,91120.0,91117.0,0.0565549]
[1764707578223,0.21949105,91120.0,91117.0,0.27605253]
[1764707578359,0.21949339,91119.0,91117.0,0.13612]
[1764707578811,0.21949339,91119.0,91118.0,0.06125]
[1764707579355,0.23046558,91120.0,91118.0,0.06125]
[1764707579662,0.23046558,91120.0,91119.0,0.06125]
[1764707580219,0.23046558,91120.0,91097.0,0.09054]
[1764707580220,0.01097502,91116.0,91097.0,0.09054]
[1764707580417,0.01097502,91116.0,91091.0,0.01646235]
[1764707580418,0.01097755,91095.0,91091.0,0.01646235]
[1764707580619,0.01097755,91095.0,91079.0,0.11097947]
[1764707580620,0.01097827,91089.0,91086.0,0.04445]
[1764707580822,0.01097791,91092.0,91086.0,0.04445]
[1764707580823,0.23053787,91092.0,91086.0,0.04445]
[1764707581058,0.23053787,91092.0,91091.0,0.01646235]
[1764707581208,0.01097779,91093.0,91091.0,0.01646235]
[1764707581209,0.23053445,91093.0,91091.0,0.01646235]
[1764707581599,0.001,91095.0,91093.0,0.21955413]
[1764707581797,0.0109767,91102.0,91097.0,0.0109773]
[1764707582019,0.0109767,91102.0,91097.0,0.21454507]
[1764707582020,0.23051084,91102.0,91097.0,0.21454507]
[1764707582293,0.21954636,91097.0,91092.0,0.01097791]
[1764707582502,0.21955415,91094.0,91091.0,0.01646235]
[1764707582712,0.21955642,91093.0,91091.0,0.01646235]
[1764707582912,0.23053182,91094.0,91091.0,0.01646235]
[1764707583126,0.004,91092.0,91091.0,0.01646235]
[1764707583356,0.01097743,91096.0,91091.0,0.01646235]
[1764707583357,0.01097706,91099.0,91094.0,0.01097767]
[1764707583587,0.23051879,91099.0,91095.0,0.01097755]
[1764707583804,0.01097718,91098.0,91095.0,0.01097755]
[1764707584004,0.01097718,91098.0,91091.0,0.01646235]
[1764707584005,0.01097743,91096.0,91091.0,0.01646235]
[1764707584283,0.23052856,91095.0,91092.0,0.21955799]
[1764707584417,0.01097743,91096.0,91092.0,0.21955799]
[1764707584630,0.01097743,91096.0,91094.0,0.001]
[1764707584829,0.21955144,91095.0,91094.0,0.001]
[1764707585032,0.23052718,91096.0,91092.0,0.2305356]
[1764707585241,0.23053001,91095.0,91092.0,0.2305356]
[1764707585445,0.0109773,91097.0,91095.0,0.06125]
[1764707585660,0.23052405,91097.0,91096.0,0.01667144]
[1764707585867,0.23052708,91096.0,91093.0,0.23053319]
[1764707586106,0.23052958,91095.0,91091.0,0.01646235]
[1764707586276,0.21954885,91096.0,91092.0,0.21955679]
[1764707586474,0.01097694,91100.0,91093.0,0.23053234]
[1764707586677,0.21954966,91096.0,91094.0,0.003]
[1764707586893,0.23052441,91097.0,91094.0,0.23053027]
[1764707587091,0.01097706,91099.0,91095.0,0.23052843]
[1764707587291,0.01097694,91100.0,91097.0,0.0109773]
[1764707587495,0.01097706,91099.0,91096.0,0.2195486]
[1764707587672,0.23051623,91100.0,91096.0,0.23052603]
[1764707588154,0.01097658,91103.0,91096.0,0.01097743]
[1764707588354,0.23051084,91102.0,91098.0,0.23052065]
[1764707588549,0.21953452,91102.0,91098.0,0.23052065]
[1764707588796,0.21952956,91104.0,91101.0,0.28025631]
[1764707588998,0.23050661,91104.0,91101.0,0.06072]
[1764707589204,0.21952025,91108.0,91100.0,0.01097694]
[1764707589205,0.02861586,91109.0,91104.0,0.01097646]
[1764707589411,0.23050072,91106.0,91105.0,0.01646235]
[1764707589611,0.21952381,91107.0,91105.0,0.01646235]
[1764707590017,0.2195245,91106.0,91105.0,0.01646235]
[1764707590784,0.2195245,91106.0,91105.0,0.01846235]
[1764707590982,0.23049575,91108.0,91105.0,0.01846235]
[1764707591184,0.37328331,91117.0,91109.0,0.01097586]
[1764707591185,0.00038778,91116.0,91109.0,0.01097586]
[1764707591476,0.0113628,91116.0,91111.0,0.21951019]
[1764707591625,0.00038778,91116.0,91111.0,0.23048725]
[1764707591857,0.01097514,91115.0,91111.0,0.23048725]
[1764707592004,0.01097538,91113.0,91110.0,0.01097574]
[1764707592207,0.00038778,91116.0,91114.0,0.06072]
[1764707592420,0.00038778,91116.0,91115.0,0.06072]
[1764707592636,0.21988819,91116.0,91115.0,0.06072]
[1764707592868,0.00038778,91116.0,91111.0,0.01097562]
[1764707593094,0.00038778,91116.0,91115.0,0.37220282]
[1764707593510,0.00038778,91116.0,91115.0,0.37420282]
[1764707593948,0.00038778,91116.0,91115.0,0.06072]
[1764707594138,0.01097562,91111.0,91107.0,0.27494598]
[1764707594367,0.01097562,91111.0,91101.0,0.01097682]
[1764707594368,0.21951969,91108.0,91091.0,0.01646235]
[1764707594564,0.2195703,91087.0,91086.0,0.47707]
[1764707594692,0.01097791,91092.0,91086.0,0.70762113]
[1764707594693,0.23054084,91091.0,91086.0,0.70762113]
[1764707594904,0.01097815,91090.0,91087.0,0.09198]
[1764707595104,0.01097767,91094.0,91088.0,0.01097839]
[1764707595340,0.23053109,91094.0,91093.0,0.01646235]
[1764707595778,0.23057787,91094.0,91093.0,0.01646235]
[1764707596222,0.2305401,91091.0,91086.0,0.05542863]
[1764707596394,0.01097779,91093.0,91089.0,0.23054293]
[1764707596605,0.23053899,91091.0,91087.0,0.01097851]
[1764707596756,0.001,91090.0,91089.0,0.21956547]
[1764707596959,0.21957028,91088.0,91086.0,0.04445]
[1764707597713,0.23054513,91089.0,91086.0,0.04445]
[1764707598068,0.01097827,91089.0,91087.0,0.21956987]
[1764707598278,0.003,91091.0,91088.0,0.01097839]
[1764707598692,0.003,91091.0,91087.0,0.21956987]
[1764707598918,0.01097791,91092.0,91088.0,0.01097839]
[1764707599125,0.01097791,91092.0,91091.0,0.01646235]
[1764707599330,0.01097779,91093.0,91091.0,0.01646235]
[1764707599544,0.23053521,91093.0,91091.0,0.01646235]
[1764707600447,0.003,91092.0,91091.0,0.01646235]
[1764707600642,0.23053521,91093.0,91091.0,0.01646235]
[1764707600851,0.23058056,91094.0,91091.0,0.01646235]
[1764707601065,4.678e-05,91094.0,91091.0,0.01746235]
[1764707601268,4.678e-05,91094.0,91092.0,0.21955824]
[1764707601458,4.678e-05,91094.0,91092.0,0.21955729]
[1764707601738,4.678e-05,91094.0,91091.0,0.02844038]
[1764707601739,4.678e-05,91094.0,91091.0,0.248]
[1764707601911,0.01102445,91094.0,91091.0,0.02844038]
[1764707602063,0.01102445,91094.0,91091.0,0.02744038]
[1764707602250,0.23057931,91094.0,91091.0,0.02744038]
[1764707602450,4.678e-05,91094.0,91092.0,0.21955698]
[1764707602652,4.678e-05,91094.0,91091.0,0.02744038]
[1764707602887,4.678e-05,91094.0,91092.0,0.21955718]
[1764707603303,4.678e-05,91094.0,91093.0,0.1527]
[1764707603531,4.678e-05,91094.0,91093.0,0.17465558]
[1764707603731,4.678e-05,91094.0,91093.0,0.30223141]
[1764707603913,4.678e-05,91094.0,91093.0,0.28027583]
[1764707604532,4.678e-05,91094.0,91093.0,0.37225583]
[1764707605577,4.678e-05,91094.0,91093.0,0.37725583]
[1764707606304,4.678e-05,91094.0,91093.0,0.37825583]
[1764707606496,4.678e-05,91094.0,91093.0,0.28627583]
[1764707606881,4.678e-05,91094.0,91093.0,0.06672]
[1764707607645,4.678e-05,91094.0,91093.0,0.006]
[1764707607646,0.3074902,91094.0,91093.0,0.006]
[1764707607854,0.2204802,91094.0,91093.0,0.006]
[1764707609697,0.38765319,91094.0,91093.0,0.006]
[1764707609900,0.40944918,91094.0,91093.0,0.006]
[1764707610571,0.40944918,91094.0,91093.0,0.005]
[1764707610967,0.73244918,91094.0,91093.0,0.005]
[1764707611368,0.21958717,91080.0,91079.0,0.1]
[1764707611639,0.30060016,91080.0,91079.0,0.1]
[1764707611789,0.38610016,91080.0,91079.0,0.1]
[1764707612795,0.38610016,91080.0,91079.0,0.102]
[1764707613208,0.38616016,91080.0,91079.0,0.102]
[1764707613571,0.23728717,91080.0,91079.0,0.102]
[1764707615222,0.21964717,91080.0,91079.0,0.102]
[1764707616576,0.22134717,91080.0,91079.0,0.102]
[1764707616761,0.30600717,91080.0,91079.0,0.102]
[1764707620091,0.21964717,91080.0,91079.0,0.102]
[1764707622616,0.24693441,91080.0,91079.0,0.102]
[1764707622868,0.24779441,91080.0,91079.0,0.102]
[1764707624881,0.24693441,91080.0,91079.0,0.102]
[1764707625524,0.21964717,91080.0,91079.0,0.102]
[1764707625742,6e-05,91080.0,91079.0,0.38263958]
[1764707625945,6e-05,91080.0,91079.0,0.49206193]
[1764707628500,6e-05,91080.0,91079.0,0.89206193]
[1764707628620,6e-05,91080.0,91079.0,0.89006193]
[1764707628819,6e-05,91080.0,91079.0,0.89106193]
[1764707629019,6e-05,91080.0,91079.0,0.89506193]